[Event "*** Titled Tuesday Blitz"]
[Site "Chess.com"]
[Date "2020.04.14"]
[Round "6"]
[White "MacDaddyMac"]
[Black "Muguet7"]
[Result "0-1"]
[WhiteElo "2292"]
[BlackElo "2465"]
[TimeControl "180+1"]
[EndTime "11:05:02 PDT"]
[Termination "Muguet7 won by resignation"]

1. e4 {[%clk 0:03:00.9]} 1... c5 {[%clk 0:02:59.6]} 2. Nc3 {[%clk 0:02:58.7]}
2... d6 {[%clk 0:02:59.4]} 3. f4 {[%clk 0:02:56.2]} 3... g6 {[%clk 0:02:58.6]}
4. Nf3 {[%clk 0:02:56.4]} 4... Bg7 {[%clk 0:02:58.9]} 5. Bb5+ {[%clk 0:02:57]}
5... Bd7 {[%clk 0:02:58.1]} 6. O-O {[%clk 0:02:56.5]} 6... Nf6 {[%clk
0:02:56.5]} 7. d3 {[%clk 0:02:52.8]} 7... O-O {[%clk 0:02:55.4]} 8. Qe1 {[%clk
0:02:52.8]} 8... Nc6 {[%clk 0:02:54.6]} 9. Qh4 {[%clk 0:02:49]} 9... a6 {[%clk
0:02:54.2]} 10. Bxc6 {[%clk 0:02:43.4]} 10... Bxc6 {[%clk 0:02:54.1]} 11. f5
{[%clk 0:02:42.2]} 11... b5 {[%clk 0:02:32.3]} 12. Bh6 {[%clk 0:02:39.9]} 12...
b4 {[%clk 0:02:29.2]} 13. Ne2 {[%clk 0:02:33.5]} 13... Qd7 {[%clk 0:02:01.7]}
14. Ng5 {[%clk 0:02:31.5]} 14... Nh5 {[%clk 0:01:48.1]} 15. Bxg7 {[%clk
0:02:26.5]} 15... Kxg7 {[%clk 0:01:48.2]} 16. g4 {[%clk 0:01:14.5]} 16... Nf6
{[%clk 0:01:40.4]} 17. fxg6 {[%clk 0:01:08.1]} 17... Qxg4+ {[%clk 0:01:28.4]}
18. Qxg4 {[%clk 0:01:07.3]} 18... Nxg4 {[%clk 0:01:28.6]} 19. gxf7 {[%clk
0:01:05.5]} 19... Bd7 {[%clk 0:01:22.8]} 20. Nf4 {[%clk 0:01:03.3]} 20... h6
{[%clk 0:00:57.7]} 21. Nge6+ {[%clk 0:00:40.1]} 21... Kxf7 {[%clk 0:00:45.1]}
22. Ng6+ {[%clk 0:00:39.6]} 22... Kxg6 {[%clk 0:00:40.6]} 23. Nxf8+ {[%clk
0:00:39.2]} 23... Rxf8 {[%clk 0:00:39.8]} 24. Rxf8 {[%clk 0:00:38.9]} 24... Ne5
{[%clk 0:00:39]} 25. Raf1 {[%clk 0:00:32.9]} 25... Kg7 {[%clk 0:00:37.2]} 26.
R8f4 {[%clk 0:00:27.5]} 26... Be6 {[%clk 0:00:36.6]} 27. c4 {[%clk 0:00:19.2]}
27... Nxd3 {[%clk 0:00:35.4]} 28. R4f3 {[%clk 0:00:16.7]} 28... Ne5 {[%clk
0:00:34.8]} 29. Rg3+ {[%clk 0:00:17]} 29... Kh7 {[%clk 0:00:34.6]} 30. b3 {[%clk
0:00:17.2]} 30... Ng6 {[%clk 0:00:32.3]} 31. Kg2 {[%clk 0:00:15.1]} 31... h5
{[%clk 0:00:31.8]} 32. Rgf3 {[%clk 0:00:14.7]} 32... Kh6 {[%clk 0:00:31.6]} 33.
Kg3 {[%clk 0:00:14.7]} 33... h4+ {[%clk 0:00:31.3]} 34. Kg2 {[%clk 0:00:14.8]}
34... Ne5 {[%clk 0:00:28]} 35. Rf8 {[%clk 0:00:14.2]} 35... h3+ {[%clk
0:00:27.9]} 36. Kg3 {[%clk 0:00:14.2]} 36... Ng6 {[%clk 0:00:27.1]} 37. Re8
{[%clk 0:00:13.7]} 37... Bd7 {[%clk 0:00:24.9]} 38. Ra8 {[%clk 0:00:13]} 38...
Bc6 {[%clk 0:00:24.9]} 39. Rxa6 {[%clk 0:00:13.1]} 39... Bxe4 {[%clk 0:00:25]}
40. a3 {[%clk 0:00:13.3]} 40... bxa3 {[%clk 0:00:24]} 41. Rxa3 {[%clk
0:00:14.2]} 41... Kg5 {[%clk 0:00:22]} 42. Ra7 {[%clk 0:00:12.9]} 42... Bf5
{[%clk 0:00:20.5]} 43. Rb7 {[%clk 0:00:09.7]} 43... e6 {[%clk 0:00:20.5]} 44.
Rg7 {[%clk 0:00:09.2]} 44... Kf6 {[%clk 0:00:19.8]} 45. Rxg6+ {[%clk 0:00:09.4]}
45... Kxg6 {[%clk 0:00:20]} 46. Rxf5 {[%clk 0:00:09]} 46... Kxf5 {[%clk
0:00:18.9]} 47. Kxh3 {[%clk 0:00:09.9]} 47... Kf4 {[%clk 0:00:18.8]} 48. Kg2
{[%clk 0:00:09.8]} 48... Kg4 {[%clk 0:00:18.9]} 49. h3+ {[%clk 0:00:10]} 49...
Kh4 {[%clk 0:00:19.2]} 50. Kh2 {[%clk 0:00:10.3]} 50... e5 {[%clk 0:00:19]} 51.
Kg2 {[%clk 0:00:10.3]} 51... Kg5 {[%clk 0:00:19.3]} 52. Kf3 {[%clk 0:00:09.9]}
52... Kf5 {[%clk 0:00:19.4]} 53. h4 {[%clk 0:00:08.4]} 53... Kf6 {[%clk
0:00:18.9]} 54. Ke4 {[%clk 0:00:08.5]} 54... Kg6 {[%clk 0:00:19.2]} 55. Kd5
{[%clk 0:00:06.7]} 55... Kh5 {[%clk 0:00:19.3]} 56. Kxd6 {[%clk 0:00:06.8]}
56... e4 {[%clk 0:00:19.7]} 57. Kxc5 {[%clk 0:00:05]} 57... e3 {[%clk
0:00:20.1]} 58. b4 {[%clk 0:00:05.9]} 58... e2 {[%clk 0:00:20.6]} 59. b5 {[%clk
0:00:06.8]} 59... e1=Q {[%clk 0:00:21]} 60. b6 {[%clk 0:00:07.7]} 60... Qe5+
{[%clk 0:00:20.8]} 61. Kb4 {[%clk 0:00:07.2]} 61... Qb8 {[%clk 0:00:19.8]} 62.
c5 {[%clk 0:00:08.1]} 62... Kxh4 {[%clk 0:00:19.4]} 63. Kb5 {[%clk 0:00:05.8]}
63... Kg5 {[%clk 0:00:16]} 64. c6 {[%clk 0:00:06.7]} 64... Kf6 {[%clk
0:00:15.3]} 65. b7 {[%clk 0:00:05.9]} 65... Qc7 {[%clk 0:00:15]} 66. Ka6 {[%clk
0:00:05.8]} 66... Qxc6+ {[%clk 0:00:14.9]} 67. Ka7 {[%clk 0:00:06.3]} 67... Qc5+
{[%clk 0:00:14.5]} 68. Ka8 {[%clk 0:00:05.6]} 68... Qa5+ {[%clk 0:00:14.3]} 69.
Kb8 {[%clk 0:00:05.9]} 69... Ke6 {[%clk 0:00:14.6]} 70. Kc8 {[%clk 0:00:06.1]}
70... Qc5+ {[%clk 0:00:14.5]} 71. Kb8 {[%clk 0:00:06.1]} 71... Kd6 {[%clk
0:00:13.9]} 72. Ka8 {[%clk 0:00:06.6]} 72... Qa5+ {[%clk 0:00:13.8]} 73. Kb8
{[%clk 0:00:06.9]} 73... Kc6 {[%clk 0:00:13.9]} 0-1

[Event "*** Titled Tuesday Blitz"]
[Site "Chess.com"]
[Date "2020.04.14"]
[Round "6"]
[White "Promacherr"]
[Black "Lestofante90"]
[Result "0-1"]
[WhiteElo "2606"]
[BlackElo "2781"]
[TimeControl "180+1"]
[EndTime "11:05:03 PDT"]
[Termination "Lestofante90 won by checkmate"]

1. e4 {[%clk 0:03:00.9]} 1... e5 {[%clk 0:02:55.8]} 2. Nf3 {[%clk 0:03:00.8]}
2... Nc6 {[%clk 0:02:56.2]} 3. Bb5 {[%clk 0:03:01.4]} 3... a6 {[%clk 0:02:56.6]}
4. Ba4 {[%clk 0:03:01.5]} 4... Nf6 {[%clk 0:02:57.1]} 5. O-O {[%clk 0:03:01.8]}
5... b5 {[%clk 0:02:57.6]} 6. Bb3 {[%clk 0:03:01.7]} 6... Bc5 {[%clk 0:02:58.5]}
7. c3 {[%clk 0:03:02]} 7... d6 {[%clk 0:02:58.4]} 8. d4 {[%clk 0:03:01.6]} 8...
Bb6 {[%clk 0:02:58.9]} 9. a4 {[%clk 0:03:00.1]} 9... Rb8 {[%clk 0:02:59.3]} 10.
Be3 {[%clk 0:02:50.9]} 10... O-O {[%clk 0:02:57.6]} 11. h3 {[%clk 0:02:41.1]}
11... h6 {[%clk 0:02:57.9]} 12. axb5 {[%clk 0:02:37.9]} 12... axb5 {[%clk
0:02:57]} 13. Na3 {[%clk 0:02:38.5]} 13... exd4 {[%clk 0:02:37.9]} 14. cxd4
{[%clk 0:02:35]} 14... Ne7 {[%clk 0:02:38]} 15. Nxb5 {[%clk 0:02:20]} 15... Nxe4
{[%clk 0:02:34.9]} 16. Nc3 {[%clk 0:02:20.1]} 16... Bf5 {[%clk 0:02:27.5]} 17.
Re1 {[%clk 0:02:17.6]} 17... Nf6 {[%clk 0:02:25.3]} 18. Bc4 {[%clk 0:02:03]}
18... Qd7 {[%clk 0:02:12]} 19. Nh4 {[%clk 0:01:53.8]} 19... d5 {[%clk
0:01:19.4]} 20. Bf1 {[%clk 0:01:30.8]} 20... c6 {[%clk 0:01:18.6]} 21. Bf4
{[%clk 0:01:24.1]} 21... Rbe8 {[%clk 0:01:13.5]} 22. Ra6 {[%clk 0:01:18.9]}
22... Nc8 {[%clk 0:01:06]} 23. Be5 {[%clk 0:01:07.9]} 23... Ne4 {[%clk
0:00:59.8]} 24. Nxe4 {[%clk 0:00:29.7]} 24... Bxe4 {[%clk 0:00:48.5]} 25. Re3
{[%clk 0:00:29.6]} 25... Rxe5 {[%clk 0:00:45.1]} 26. dxe5 {[%clk 0:00:29.3]}
26... Bxe3 {[%clk 0:00:44.6]} 27. fxe3 {[%clk 0:00:30.2]} 27... Ne7 {[%clk
0:00:31.4]} 28. Qd4 {[%clk 0:00:21.6]} 28... Qd8 {[%clk 0:00:13]} 29. Nf3 {[%clk
0:00:19.5]} 29... Nf5 {[%clk 0:00:12.9]} 30. Qd2 {[%clk 0:00:16.5]} 30... Bxf3
{[%clk 0:00:11.8]} 31. gxf3 {[%clk 0:00:17.2]} 31... Qg5+ {[%clk 0:00:12.2]} 32.
Kf2 {[%clk 0:00:17.4]} 32... Qh4+ {[%clk 0:00:12.6]} 33. Kg1 {[%clk 0:00:15.9]}
33... c5 {[%clk 0:00:07.2]} 34. f4 {[%clk 0:00:14.5]} 34... d4 {[%clk
0:00:06.8]} 35. Ra3 {[%clk 0:00:13.8]} 35... Nxe3 {[%clk 0:00:06.3]} 36. Rxe3
{[%clk 0:00:13.1]} 36... dxe3 {[%clk 0:00:07.2]} 37. Qxe3 {[%clk 0:00:14]} 37...
Rd8 {[%clk 0:00:06.4]} 38. Be2 {[%clk 0:00:13.9]} 38... Rd4 {[%clk 0:00:04.8]}
39. e6 {[%clk 0:00:12.9]} 39... fxe6 {[%clk 0:00:01.8]} 40. Qxe6+ {[%clk
0:00:13.8]} 40... Kf8 {[%clk 0:00:01.7]} 41. Qc8+ {[%clk 0:00:13.2]} 41... Qd8
{[%clk 0:00:01.6]} 42. Qf5+ {[%clk 0:00:13.4]} 42... Qf6 {[%clk 0:00:02.1]} 43.
Qxc5+ {[%clk 0:00:13.4]} 43... Qd6 {[%clk 0:00:03]} 44. Qf5+ {[%clk 0:00:13]}
44... Kg8 {[%clk 0:00:03.4]} 45. Qc8+ {[%clk 0:00:11.5]} 45... Kf7 {[%clk
0:00:03.4]} 46. Qf5+ {[%clk 0:00:11.5]} 46... Ke7 {[%clk 0:00:03.9]} 47. Bg4
{[%clk 0:00:09.7]} 47... Rxf4 {[%clk 0:00:03.8]} 48. Qc2 {[%clk 0:00:08.4]}
48... Qd4+ {[%clk 0:00:03.7]} 49. Kg2 {[%clk 0:00:08.3]} 49... Qe4+ {[%clk
0:00:04]} 50. Qxe4+ {[%clk 0:00:08.5]} 50... Rxe4 {[%clk 0:00:04.9]} 51. Bd1
{[%clk 0:00:08.8]} 51... Rb4 {[%clk 0:00:05.8]} 52. b3 {[%clk 0:00:09.1]} 52...
Kf6 {[%clk 0:00:06.1]} 53. Kf3 {[%clk 0:00:10]} 53... h5 {[%clk 0:00:05.5]} 54.
Ke3 {[%clk 0:00:10.2]} 54... Rh4 {[%clk 0:00:03.2]} 55. Kd3 {[%clk 0:00:10.3]}
55... Ke7 {[%clk 0:00:02]} 56. Kc3 {[%clk 0:00:09.6]} 56... Rxh3+ {[%clk
0:00:01.8]} 57. Kc4 {[%clk 0:00:09.8]} 57... Kd6 {[%clk 0:00:02.7]} 58. b4
{[%clk 0:00:10.1]} 58... Kc7 {[%clk 0:00:03.1]} 59. Kc5 {[%clk 0:00:10.2]} 59...
g5 {[%clk 0:00:02.7]} 60. b5 {[%clk 0:00:10.4]} 60... g4 {[%clk 0:00:03]} 61.
b6+ {[%clk 0:00:11.3]} 61... Kb8 {[%clk 0:00:03.3]} 62. Bc2 {[%clk 0:00:11.6]}
62... Rc3+ {[%clk 0:00:02.9]} 63. Kb5 {[%clk 0:00:11.1]} 63... Rxc2 {[%clk
0:00:03.8]} 64. b7 {[%clk 0:00:11.5]} 64... Rb2+ {[%clk 0:00:03.6]} 65. Ka6
{[%clk 0:00:12.4]} 65... Rxb7 {[%clk 0:00:03.3]} 66. Ka5 {[%clk 0:00:13.3]}
66... g3 {[%clk 0:00:04]} 67. Ka6 {[%clk 0:00:14.2]} 67... g2 {[%clk 0:00:04.9]}
68. Ka5 {[%clk 0:00:15.1]} 68... g1=N {[%clk 0:00:04.5]} 69. Ka6 {[%clk
0:00:16]} 69... h4 {[%clk 0:00:04.8]} 70. Ka5 {[%clk 0:00:16.9]} 70... h3 {[%clk
0:00:05.7]} 71. Ka6 {[%clk 0:00:17.8]} 71... h2 {[%clk 0:00:06.6]} 72. Ka5
{[%clk 0:00:18.7]} 72... h1=Q {[%clk 0:00:06.6]} 73. Ka6 {[%clk 0:00:19.6]}
73... Qg2 {[%clk 0:00:06.7]} 74. Ka5 {[%clk 0:00:20.5]} 74... Qa2# {[%clk
0:00:07.6]} 0-1

[Event "*** Titled Tuesday Blitz"]
[Site "Chess.com"]
[Date "2020.04.14"]
[Round "6"]
[White "Lupul_Cenusiu"]
[Black "Arjun2002"]
[Result "1-0"]
[WhiteElo "2489"]
[BlackElo "2630"]
[TimeControl "180+1"]
[EndTime "11:05:03 PDT"]
[Termination "Lupul_Cenusiu won by resignation"]

1. d4 {[%clk 0:03:00.9]} 1... d5 {[%clk 0:02:59.9]} 2. c4 {[%clk 0:03:00.9]}
2... c6 {[%clk 0:03:00.2]} 3. Nc3 {[%clk 0:03:00.8]} 3... Nf6 {[%clk 0:02:59.5]}
4. cxd5 {[%clk 0:03:00.6]} 4... cxd5 {[%clk 0:02:59.3]} 5. Bf4 {[%clk
0:03:00.6]} 5... Nc6 {[%clk 0:02:59.5]} 6. e3 {[%clk 0:03:00.9]} 6... Bg4 {[%clk
0:02:58.7]} 7. Qb3 {[%clk 0:03:00.3]} 7... Na5 {[%clk 0:02:59.1]} 8. Qa4+ {[%clk
0:03:00.3]} 8... Bd7 {[%clk 0:02:59.1]} 9. Qc2 {[%clk 0:03:00.2]} 9... e6 {[%clk
0:02:59.5]} 10. Bd3 {[%clk 0:02:59.3]} 10... Rc8 {[%clk 0:02:58]} 11. Nge2
{[%clk 0:02:57.4]} 11... Nc6 {[%clk 0:02:55.2]} 12. a3 {[%clk 0:02:56.8]} 12...
Nh5 {[%clk 0:02:54.8]} 13. Bg3 {[%clk 0:02:52.8]} 13... Nxg3 {[%clk 0:02:48.1]}
14. hxg3 {[%clk 0:02:50.6]} 14... g6 {[%clk 0:02:48.1]} 15. Nf4 {[%clk
0:02:40.5]} 15... Bg7 {[%clk 0:02:47.9]} 16. Qe2 {[%clk 0:02:40.6]} 16... Na5
{[%clk 0:02:41.8]} 17. Bb5 {[%clk 0:02:32]} 17... Nc4 {[%clk 0:02:37.4]} 18.
Bxd7+ {[%clk 0:02:30.6]} 18... Qxd7 {[%clk 0:02:38.3]} 19. Nd3 {[%clk
0:02:28.2]} 19... O-O {[%clk 0:02:36.6]} 20. g4 {[%clk 0:02:24.1]} 20... Qc7
{[%clk 0:02:32]} 21. Rc1 {[%clk 0:02:12.5]} 21... Qa5 {[%clk 0:02:30.6]} 22. O-O
{[%clk 0:01:57.3]} 22... b6 {[%clk 0:02:23.6]} 23. Nb4 {[%clk 0:01:51.4]} 23...
Rc7 {[%clk 0:02:16.4]} 24. Nca2 {[%clk 0:01:43.2]} 24... Rfc8 {[%clk 0:02:12.9]}
25. Rc3 {[%clk 0:01:38.9]} 25... Qb5 {[%clk 0:02:11.2]} 26. Rfc1 {[%clk
0:01:33.1]} 26... a5 {[%clk 0:02:03.6]} 27. Nd3 {[%clk 0:01:31.3]} 27... Qd7
{[%clk 0:01:59.6]} 28. a4 {[%clk 0:01:23.3]} 28... Bf8 {[%clk 0:01:56.3]} 29. b3
{[%clk 0:01:18.3]} 29... Nd6 {[%clk 0:01:51.5]} 30. Ne5 {[%clk 0:01:15.5]} 30...
Qd8 {[%clk 0:01:51.7]} 31. Nc6 {[%clk 0:01:06.4]} 31... Qe8 {[%clk 0:01:49.3]}
32. Qc2 {[%clk 0:01:04.6]} 32... Nc4 {[%clk 0:01:40.2]} 33. Ne5 {[%clk
0:00:56.9]} 33... Na3 {[%clk 0:01:24.1]} 34. Qb2 {[%clk 0:00:51.3]} 34... Rxc3
{[%clk 0:01:23.7]} 35. Rxc3 {[%clk 0:00:50.8]} 35... f6 {[%clk 0:01:17.1]} 36.
Nd3 {[%clk 0:00:49]} 36... b5 {[%clk 0:01:07.6]} 37. Nc5 {[%clk 0:00:35]} 37...
b4 {[%clk 0:01:04.7]} 38. Rc1 {[%clk 0:00:31.5]} 38... Rc6 {[%clk 0:00:58]} 39.
Nd3 {[%clk 0:00:23.3]} 39... Qc8 {[%clk 0:00:54.7]} 40. Rxc6 {[%clk 0:00:20.8]}
40... Qxc6 {[%clk 0:00:54.7]} 41. g3 {[%clk 0:00:19.5]} 41... Qc2 {[%clk
0:00:49.8]} 42. Qxc2 {[%clk 0:00:19.4]} 42... Nxc2 {[%clk 0:00:50.7]} 43. Kf1
{[%clk 0:00:19.2]} 43... Kf7 {[%clk 0:00:27.1]} 44. Ke2 {[%clk 0:00:18.6]} 44...
Bd6 {[%clk 0:00:26.9]} 45. Kd2 {[%clk 0:00:18.6]} 45... Na3 {[%clk 0:00:27.2]}
46. f4 {[%clk 0:00:18.1]} 46... f5 {[%clk 0:00:24.3]} 47. g5 {[%clk 0:00:17.5]}
47... Kg7 {[%clk 0:00:24.1]} 48. Ne1 {[%clk 0:00:14]} 48... h6 {[%clk
0:00:24.2]} 49. Nf3 {[%clk 0:00:13.9]} 49... hxg5 {[%clk 0:00:22.5]} 50. Nxg5
{[%clk 0:00:13.5]} 50... Kf6 {[%clk 0:00:22.8]} 51. Kc1 {[%clk 0:00:12.9]} 51...
Bf8 {[%clk 0:00:20.4]} 52. Kb2 {[%clk 0:00:11.7]} 52... Bh6 {[%clk 0:00:20]} 53.
Nf3 {[%clk 0:00:11.6]} 53... g5 {[%clk 0:00:19.8]} 54. Ne5 {[%clk 0:00:10.6]}
54... gxf4 {[%clk 0:00:18.7]} 55. gxf4 {[%clk 0:00:10.3]} 55... Bf8 {[%clk
0:00:17.2]} 56. Nc6 {[%clk 0:00:07.7]} 56... Kg6 {[%clk 0:00:15.4]} 57. Nxa5
{[%clk 0:00:07.6]} 57... Kh5 {[%clk 0:00:16]} 58. Nc6 {[%clk 0:00:07.9]} 58...
Kg4 {[%clk 0:00:16.5]} 59. Naxb4 {[%clk 0:00:08.3]} 59... Kf3 {[%clk 0:00:13.7]}
60. Kxa3 {[%clk 0:00:08]} 60... Kxe3 {[%clk 0:00:14.3]} 61. a5 {[%clk
0:00:08.4]} 61... Kxf4 {[%clk 0:00:14.7]} 62. a6 {[%clk 0:00:08.4]} 62... Ke3
{[%clk 0:00:15.2]} 63. a7 {[%clk 0:00:08.3]} 63... f4 {[%clk 0:00:14.8]} 64.
a8=Q {[%clk 0:00:08]} 64... f3 {[%clk 0:00:15.7]} 65. Qxf8 {[%clk 0:00:07.5]}
65... f2 {[%clk 0:00:16.6]} 66. Ne5 {[%clk 0:00:07.2]} 66... f1=Q {[%clk
0:00:17.5]} 67. Qxf1 {[%clk 0:00:05.9]} 67... Kd2 {[%clk 0:00:16.1]} 68. Qf2+
{[%clk 0:00:05.7]} 68... Kd1 {[%clk 0:00:14.9]} 69. Qc2+ {[%clk 0:00:05]} 69...
Ke1 {[%clk 0:00:14.4]} 70. Nbd3+ {[%clk 0:00:05.6]} 1-0

[Event "*** Titled Tuesday Blitz"]
[Site "Chess.com"]
[Date "2020.04.14"]
[Round "6"]
[White "GMKrikor"]
[Black "Gahan-MG"]
[Result "1/2-1/2"]
[WhiteElo "2695"]
[BlackElo "2532"]
[TimeControl "180+1"]
[EndTime "11:05:04 PDT"]
[Termination "Game drawn by repetition"]

1. Nf3 {[%clk 0:03:00.9]} 1... Nf6 {[%clk 0:02:59.3]} 2. c4 {[%clk 0:03:00.3]}
2... g6 {[%clk 0:02:57.5]} 3. Nc3 {[%clk 0:02:56.6]} 3... d5 {[%clk 0:02:57.9]}
4. cxd5 {[%clk 0:02:53.5]} 4... Nxd5 {[%clk 0:02:58.8]} 5. h4 {[%clk 0:02:51.2]}
5... h5 {[%clk 0:02:58.4]} 6. e4 {[%clk 0:02:40.5]} 6... Nxc3 {[%clk 0:02:58.1]}
7. bxc3 {[%clk 0:02:41.4]} 7... Bg7 {[%clk 0:02:57.5]} 8. d4 {[%clk 0:02:41.6]}
8... c5 {[%clk 0:02:57.9]} 9. Be3 {[%clk 0:02:25.2]} 9... Bg4 {[%clk 0:02:56.1]}
10. Rc1 {[%clk 0:02:20.6]} 10... Qa5 {[%clk 0:02:51.4]} 11. Qd2 {[%clk
0:02:18.7]} 11... Bxf3 {[%clk 0:02:40.6]} 12. gxf3 {[%clk 0:02:18.3]} 12... cxd4
{[%clk 0:02:40.6]} 13. cxd4 {[%clk 0:02:18.6]} 13... Qxd2+ {[%clk 0:02:40.7]}
14. Kxd2 {[%clk 0:02:19.5]} 14... Nc6 {[%clk 0:02:40.3]} 15. Bb5 {[%clk
0:02:16.2]} 15... Rd8 {[%clk 0:02:22.8]} 16. d5 {[%clk 0:01:30.3]} 16... O-O
{[%clk 0:02:10.4]} 17. Rxc6 {[%clk 0:01:15.1]} 17... bxc6 {[%clk 0:02:08.9]} 18.
Bxc6 {[%clk 0:01:16]} 18... Rb8 {[%clk 0:01:58.3]} 19. Bc5 {[%clk 0:00:57.9]}
19... Rb2+ {[%clk 0:01:56.9]} 20. Ke3 {[%clk 0:00:57.5]} 20... Bf6 {[%clk
0:01:24.9]} 21. f4 {[%clk 0:00:57.6]} 21... Rc2 {[%clk 0:01:18.3]} 22. Bb4
{[%clk 0:00:54.8]} 22... Rb8 {[%clk 0:01:16.6]} 23. a3 {[%clk 0:00:55]} 23... a5
{[%clk 0:01:11.6]} 24. Kd3 {[%clk 0:00:32.8]} 24... Rxf2 {[%clk 0:00:59.9]} 25.
Bxa5 {[%clk 0:00:21.9]} 25... Rf3+ {[%clk 0:00:54.5]} 26. Kc4 {[%clk 0:00:19.3]}
26... Rxf4 {[%clk 0:00:50.5]} 27. Bb4 {[%clk 0:00:19.7]} 27... Rxe4+ {[%clk
0:00:49.1]} 28. Kd3 {[%clk 0:00:17.1]} 28... Rxh4 {[%clk 0:00:47]} 29. Re1
{[%clk 0:00:17]} 29... Rd4+ {[%clk 0:00:36.2]} 30. Ke3 {[%clk 0:00:14.2]} 30...
Rdxb4 {[%clk 0:00:31.9]} 31. axb4 {[%clk 0:00:13.7]} 31... Rxb4 {[%clk
0:00:32.8]} 32. Kf3 {[%clk 0:00:12.6]} 32... Rd4 {[%clk 0:00:30]} 33. Rb1 {[%clk
0:00:11.9]} 33... Kg7 {[%clk 0:00:30]} 34. Rb7 {[%clk 0:00:11.2]} 34... g5
{[%clk 0:00:26.2]} 35. Rb1 {[%clk 0:00:10.4]} 35... g4+ {[%clk 0:00:25.3]} 36.
Ke3 {[%clk 0:00:11.3]} 36... Rc4 {[%clk 0:00:17.8]} 37. Bd7 {[%clk 0:00:10.3]}
37... Rc5 {[%clk 0:00:16.4]} 38. Rd1 {[%clk 0:00:10]} 38... Bg5+ {[%clk
0:00:15.8]} 39. Ke4 {[%clk 0:00:10]} 39... Rc2 {[%clk 0:00:15]} 40. Rh1 {[%clk
0:00:07.4]} 40... Kh6 {[%clk 0:00:13.1]} 41. Be8 {[%clk 0:00:08]} 41... Rf2
{[%clk 0:00:12.3]} 42. Bd7 {[%clk 0:00:07.2]} 42... Rf4+ {[%clk 0:00:12.3]} 43.
Ke5 {[%clk 0:00:06.4]} 43... h4 {[%clk 0:00:11.7]} 44. d6 {[%clk 0:00:05.7]}
44... exd6+ {[%clk 0:00:10.2]} 45. Kxd6 {[%clk 0:00:06.6]} 45... f5 {[%clk
0:00:09.5]} 46. Ke5 {[%clk 0:00:06.7]} 46... Kg6 {[%clk 0:00:08.2]} 47. Be8+
{[%clk 0:00:07.2]} 47... Kg7 {[%clk 0:00:07.9]} 48. Bd7 {[%clk 0:00:08.1]} 48...
Rf2 {[%clk 0:00:05]} 49. Bxf5 {[%clk 0:00:08.2]} 49... g3 {[%clk 0:00:05.3]} 50.
Bh3 {[%clk 0:00:08.6]} 50... Bf6+ {[%clk 0:00:05.1]} 51. Ke4 {[%clk 0:00:08.8]}
51... Bg5 {[%clk 0:00:05.6]} 52. Rf1 {[%clk 0:00:08.7]} 52... Re2+ {[%clk
0:00:04.6]} 53. Kf3 {[%clk 0:00:09.3]} 53... Rh2 {[%clk 0:00:04.8]} 54. Kg4
{[%clk 0:00:08]} 54... Bf6 {[%clk 0:00:05]} 55. Rg1 {[%clk 0:00:08.1]} 55... Rf2
{[%clk 0:00:04.9]} 56. Rf1 {[%clk 0:00:08.6]} 56... Rd2 {[%clk 0:00:05.2]} 57.
Rc1 {[%clk 0:00:06.7]} 57... Rd4+ {[%clk 0:00:05.5]} 58. Kf5 {[%clk 0:00:06.9]}
58... Rd5+ {[%clk 0:00:05.7]} 59. Kg4 {[%clk 0:00:06.6]} 59... Rg5+ {[%clk
0:00:05.4]} 60. Kf3 {[%clk 0:00:06.1]} 60... Rd5 {[%clk 0:00:04.5]} 61. Kg4
{[%clk 0:00:05.6]} 61... Kg6 {[%clk 0:00:04.8]} 62. Bg2 {[%clk 0:00:04.6]} 62...
Rd4+ {[%clk 0:00:05.2]} 63. Kh3 {[%clk 0:00:05.2]} 63... Rf4 {[%clk 0:00:05.2]}
64. Rf1 {[%clk 0:00:05.2]} 64... Rxf1 {[%clk 0:00:05]} 65. Bxf1 {[%clk
0:00:06.1]} 65... Kg5 {[%clk 0:00:05.7]} 66. Kg2 {[%clk 0:00:05.5]} 66... Be5
{[%clk 0:00:06.6]} 67. Bb5 {[%clk 0:00:05.5]} 67... Bf6 {[%clk 0:00:07.5]} 68.
Bd7 {[%clk 0:00:06.2]} 68... Kf4 {[%clk 0:00:08.4]} 69. Bh3 {[%clk 0:00:07]}
69... Ke3 {[%clk 0:00:09]} 70. Bc8 {[%clk 0:00:07.9]} 70... Kf4 {[%clk
0:00:09.7]} 71. Bh3 {[%clk 0:00:08.8]} 71... Kg5 {[%clk 0:00:10.5]} 72. Bc8
{[%clk 0:00:09.5]} 72... Kf4 {[%clk 0:00:11.4]} 73. Bh3 {[%clk 0:00:10.2]}
1/2-1/2